lending/lending_fUSD_20250508
["ID","MTS","AMOUNT","RATE_DAILY","PERIOD"]
[360328771,1746743439443,-500.0,0.00019999,2]
[360328772,1746743439453,-500.0,0.00019999,2]
[360328773,1746743439463,-406.25116216,0.00019999,2]
[360328774,1746743439472,-500.0,0.00019999,2]
[360328775,1746743439481,-500.0,0.00019999,2]
[360328776,1746743439491,-500.0,0.00019999,2]
[360328777,1746743439500,-500.0,0.00019999,2]
[360328778,1746743439510,-500.0,0.00019999,2]
[360328779,1746743439520,-500.0,0.00019999,2]
[360328780,1746743439529,-500.0,0.00019999,2]
[360328781,1746743439538,-500.0,0.00019999,2]
[360328782,1746743439548,-500.0,0.00019999,2]
[360328783,1746743439557,-500.0,0.00019999,2]
[360328784,1746743439566,-500.0,0.00019999,2]
[360328785,1746743439576,-500.0,0.00019999,2]
[360328786,1746743439586,-500.0,0.00019999,2]
[360328787,1746743439595,-500.0,0.00019999,2]
[360328788,1746743439604,-500.0,0.00019999,2]
[360328789,1746743439614,-500.0,0.00019999,2]
[360328790,1746743439623,-500.0,0.00019999,2]
[360328791,1746743439633,-500.0,0.00019999,2]
[360328792,1746743439643,-500.0,0.00019999,2]
[360328793,1746743439652,-500.0,0.00019999,2]
[360328794,1746743439662,-500.0,0.00019999,2]
[360328795,1746743439672,-500.0,0.00019999,2]
[360328796,1746743439682,-500.0,0.00019999,2]
[360328797,1746743439692,-500.0,0.00019999,2]
[360328798,1746743439703,-420.38027347,0.00019999,2]
[360328799,1746743439712,-500.0,0.00019999,2]
[360328800,1746743439723,-500.0,0.00019999,2]
[360328801,1746743439733,-500.0,0.00019999,2]
[360328802,1746743439745,-500.0,0.00019999,2]
[360328803,1746743439755,-500.0,0.00019999,2]
[360328804,1746743439765,-500.0,0.00019999,2]
[360328805,1746743439774,-500.0,0.00019999,2]
[360328806,1746743439785,-500.0,0.00019999,2]
[360328807,1746743439794,-500.0,0.00019999,2]
[360328808,1746743439804,-500.0,0.00019999,2]
[360328809,1746743439815,-500.0,0.00019999,2]
[360328810,1746743439825,-500.0,0.00019999,2]
[360328811,1746743439834,-500.0,0.00019999,2]
[360328812,1746743439844,-500.0,0.00019999,2]
[360328813,1746743439854,-500.0,0.00019999,2]
[360328815,1746743439864,-500.0,0.00019999,2]
[360328816,1746743439874,-500.0,0.00019999,2]
[360328817,1746743439884,-500.0,0.00019999,2]
[360328818,1746743439894,-500.0,0.00019999,2]
[360328819,1746743439904,-500.0,0.00019999,2]
[360328821,1746743439914,-500.0,0.00019999,2]
[360328822,1746743439924,-500.0,0.00019999,2]
[360328823,1746743439933,-500.0,0.00019999,2]
[360328824,1746743439943,-500.0,0.00019999,2]
[360328825,1746743439953,-500.0,0.00019999,2]
[360328826,1746743439962,-500.0,0.00019999,2]
[360328827,1746743439972,-500.0,0.00019999,2]
[360328828,1746743439981,-500.0,0.00019999,2]
[360328829,1746743439990,-500.0,0.00019999,2]
[360328830,1746743440000,-500.0,0.00019999,2]
[360328831,1746743440009,-500.0,0.00019999,2]
[360328832,1746743440019,-631.64787961,0.00019999,2]
[360328833,1746743440028,-500.0,0.00019999,2]
[360328834,1746743440038,-500.0,0.00019999,2]
[360328835,1746743440047,-500.0,0.00019999,2]
[360328836,1746743440057,-860.37730081,0.00019999,2]
[360328837,1746743440067,-500.0,0.00019999,2]
[360328838,1746743440076,-500.0,0.00019999,2]
[360328839,1746743440086,-860.37730081,0.00019999,2]
[360328840,1746743440096,-500.0,0.00019999,2]
[360328841,1746743440106,-500.0,0.00019999,2]
[360328842,1746743440116,-860.37730081,0.00019999,2]
[360328843,1746743440126,-500.0,0.00019999,2]
[360328844,1746743440135,-500.0,0.00019999,2]
[360328845,1746743440145,-860.37730081,0.00019999,2]
[360328846,1746743440154,-500.0,0.00019999,2]
[360328847,1746743440165,-500.0,0.00019999,2]
[360328848,1746743440175,-860.37730081,0.00019999,2]
[360328849,1746743440185,-500.0,0.00019999,2]
[360328850,1746743440194,-860.37730081,0.00019999,2]
[360328851,1746743440204,-500.0,0.00019999,2]
[360328852,1746743440214,-860.37730081,0.00019999,2]
[360328853,1746743440224,-356.26045942,0.00019999,2]
[360328854,1746743440233,-500.0,0.00019999,2]
[360328855,1746743440243,-860.37730081,0.00019999,2]
[360328856,1746743440252,-500.0,0.00019999,2]
[360328857,1746743440262,-500.0,0.00019999,2]
[360328858,1746743440272,-860.37730081,0.00019999,2]
[360328859,1746743440282,-500.0,0.00019999,2]
[360328860,1746743440291,-500.0,0.00019999,2]
[360328861,1746743440301,-860.37730081,0.00019999,2]
[360328862,1746743440310,-500.0,0.00019999,2]
[360328863,1746743440320,-500.0,0.00019999,2]
[360328864,1746743440330,-860.37730081,0.00019999,2]
[360328865,1746743440339,-500.0,0.00019999,2]
[360328866,1746743440349,-500.0,0.00019999,2]
[360328867,1746743440360,-860.37730081,0.00019999,2]
[360328868,1746743440369,-500.0,0.00019999,2]
[360328869,1746743440379,-860.37730081,0.00019999,2]
[360328870,1746743440389,-206.47985661,0.00019999,2]
[360328871,1746743440404,-277.57103379,0.00019999,2]
[360328872,1746743440415,-15.9491096,0.00019999,2]
[360328873,1746743440425,-309.26011084,0.00019999,2]
[360328874,1746743440441,-551.11718997,0.00019999,2]
[360328875,1746743440451,-500.0,0.00019999,2]
[360328876,1746743440461,-500.0,0.00019999,2]
[360328877,1746743440471,-860.37730081,0.00019999,2]
[360328878,1746743440481,-500.0,0.00019999,2]
[360328879,1746743440491,-500.0,0.00019999,2]
[360328880,1746743440500,-500.0,0.00019999,2]
[360328881,1746743440510,-860.37730081,0.00019999,2]
[360328882,1746743440520,-500.0,0.00019999,2]
[360328883,1746743440529,-500.0,0.00019999,2]
[360328884,1746743440539,-860.37730081,0.00019999,2]
[360328885,1746743440548,-500.0,0.00019999,2]
[360328886,1746743440558,-500.0,0.00019999,2]
[360328887,1746743440568,-860.37730081,0.00019999,2]
[360328888,1746743440578,-500.0,0.00019999,2]
[360328889,1746743440588,-860.37730081,0.00019999,2]
[360328890,1746743440598,-500.0,0.00019999,2]
[360328891,1746743440607,-500.0,0.00019999,2]
[360328892,1746743440616,-500.0,0.00019999,2]
[360328893,1746743440626,-860.37730081,0.00019999,2]
[360328894,1746743440636,-500.0,0.00019999,2]
[360328895,1746743440645,-860.37730081,0.00019999,2]
[360328896,1746743440655,-860.37730081,0.00019999,2]
[360328897,1746743440664,-500.0,0.00019999,2]
[360328898,1746743440674,-500.0,0.00019999,2]
[360328900,1746743440683,-860.37730081,0.00019999,2]
[360328901,1746743440693,-500.0,0.00019999,2]
[360328902,1746743440702,-860.37730081,0.00019999,2]
[360328903,1746743440713,-500.0,0.00019999,2]
[360328904,1746743440722,-860.37730081,0.00019999,2]
[360328905,1746743440732,-860.37730081,0.00019999,2]
[360328906,1746743440745,-122.13646447,0.00019999,2]
[360328907,1746743440810,-738.24083634,0.00019999,2]
[360328908,1746743440821,-860.37730081,0.00019999,2]
[360328909,1746743440830,-500.0,0.00019999,2]
[360328910,1746743440839,-860.37730081,0.00019999,2]
[360328911,1746743440848,-325.57363176,0.00019999,2]
[360328912,1746743440857,-185.96740165,0.0002,2]
[360328913,1746743440869,-18918.79334653,0.0002,2]
[360328914,1746743440880,-264.12,0.0002,2]
[360328933,1746743443232,-33.39323493,0.0002,2]
[360328934,1746743443244,-307.5,0.0002,2]
[360328935,1746743443257,-1492029.35363087,0.0002,2]
[360328953,1746743443686,-231.96540897,0.0001999,2]
[360328955,1746743443696,-231.96540897,0.0001999,2]
[360328957,1746743443707,-231.96540897,0.0001999,2]
[360328961,1746743443716,-2464.85668965,0.0002,2]
[360328964,1746743443726,-43834.12721939,0.0002,2]
[360329214,1746743446122,-2054.92216,0.0002,2]
[360329226,1746743446233,-435.43175646,0.0002,2]
[360329235,1746743446342,-2189.77080002,0.0002,2]
[360330131,1746743522718,170.09331734,0.00030137,120]
[360330132,1746743527700,170.09331734,0.00030137,120]
[360330133,1746743528700,170.09331734,0.00030137,120]
[360330134,1746743538924,170.09331735,0.00030137,120]
[360330136,1746743848921,1000.0,0.00019332,2]
[360330138,1746744025396,150.0,0.0001906,2]
[360330139,1746744045851,1517.99,0.0001906,2]
[360330140,1746744123562,600.0,0.0003,30]
[360330141,1746744139895,655.0,0.0003,30]
[360330142,1746744149087,2468.08,0.00019052,2]
[360330143,1746744153203,-183.39323493,0.00019506,2]
[360330144,1746744157416,665.0,0.0003,30]
[360330145,1746744163848,-152.01808448,0.00019506,2]
[360330146,1746744178791,-286.82853684,0.00019506,2]
[360330147,1746744182898,427.08,0.00019052,2]
[360330148,1746744193828,-97.11293326,0.00019506,2]
[360330149,1746744197726,164.16,0.00019074,2]
[360330150,1746744207147,1158.94,0.00019036,2]
[360330152,1746744289309,150.0,0.00019023,7]
[360330153,1746744294267,1147.34,0.00019011,2]
[360330154,1746744295414,1147.34,0.0002614,120]
[360330155,1746744295626,1147.34,0.00028517,120]
[360330159,1746744321881,150.0,0.00018,2]
[360330160,1746744328384,94.39662201,0.00018,2]
[360330161,1746744328405,55.60337799,0.00018,2]
[360330162,1746744330440,173.77,0.00019178,2]
[360330163,1746744333933,150.0,0.00018,2]
[360330164,1746744349875,1500.0,0.00019178,2]
[360330165,1746744450166,250.0,0.00018977,2]
[360330166,1746744472491,200.0,0.00018977,2]
[360330169,1746744536337,395.0,0.00030137,120]
[360330170,1746744552295,16378.30805525,0.00019917,5]
[360330171,1746744567415,7670.62662201,0.00018952,2]
[360330172,1746744567436,3540.45337799,0.00018952,2]
[360330186,1746744631357,6459.54662201,0.00018961,2]
[360330187,1746744631379,10000.0,0.00018961,2]
[360330188,1746744631401,2927.55337799,0.00018961,2]
[360330195,1746744632387,-300.0,0.00019538,2]
[360330196,1746744632397,-1200.0,0.00019538,2]
[360330197,1746744632406,-300.0,0.00019538,2]
[360330198,1746744632415,-300.0,0.00019538,2]
[360330199,1746744632425,-151.0,0.00019539,2]
[360330200,1746744632435,-250.0,0.00019539,2]
[360330201,1746744632444,-2277.3,0.00019539,2]
[360330202,1746744632552,-404.4750197,0.00019539,2]
[360330398,1746744638479,-69.2249803,0.00019539,2]
[360330399,1746744638489,-162.50199456,0.00019539,2]
[360330400,1746744638499,-10935.74823318,0.00019539,2]
[360330401,1746744638511,-4166.69635523,0.00019539,2]
[360330402,1746744638521,-250.0,0.00019559,2]
[360330403,1746744638531,-156.57,0.0001957,2]
[360330404,1746744638540,-338.81,0.000197,2]
[360330405,1746744638551,-2500.0,0.00019819,2]
[360330406,1746744638561,-22514.7327,0.00019819,2]
[360330407,1746744638571,-500.0,0.00019839,2]
[360330408,1746744638580,-500.0,0.0001984,2]
[360330409,1746744638590,-500.0,0.00019863,2]
[360330410,1746744638600,-372.43758674,0.00019873,2]
[360330411,1746744638610,-372.43758669,0.00019876,2]
[360330412,1746744638620,-200.0,0.00019876,2]
[360330413,1746744638630,-200.0,0.00019898,2]
[360330414,1746744638640,-374.54368177,0.00019898,2]
[360330415,1746744638649,-374.54368173,0.00019898,2]
[360330416,1746744638659,-1000.0,0.00019898,2]
[360330417,1746744638669,-374.54368173,0.00019898,2]
[360330418,1746744638679,-374.54368173,0.00019899,2]
[360330419,1746744638689,-374.54368173,0.00019899,2]
[360330420,1746744638698,-2490.327,0.00019899,2]
[360330421,1746744638712,-188.245,0.00019899,2]
[360330422,1746744638722,-850.0,0.00019899,2]
[360330423,1746744638732,-12500.0,0.000199,2]
[360330424,1746744638741,-5800.0,0.000199,2]
[360330425,1746744638752,-331.3258657,0.000199,2]
[360330426,1746744638762,-627.30060297,0.000199,2]
[360330427,1746744638772,-294.01435266,0.000199,2]
[360330428,1746744638782,-11617.90141865,0.000199,2]
[360330429,1746744638792,-154.11,0.00019909,2]
[360330430,1746744638803,-29054.22923914,0.00019919,2]
[360330431,1746744640678,-374.54368173,0.00019899,2]
[360330432,1746744640688,-498.7495125,0.00019919,2]
[360330433,1746744640700,-835.15836975,0.00019919,2]
[360330434,1746744640713,-23233.48794506,0.00019919,2]
[360330435,1746744640772,-629.23687052,0.00019919,2]
[360330436,1746744640783,-4609.1563746,0.00019919,2]
[360330437,1746744640796,-95909.9119434,0.00019919,2]
[360330438,1746744640806,-500.0,0.00019973,2]
[360330439,1746744640816,-500.0,0.00019973,2]
[360330440,1746744640826,-429.74111137,0.00019973,2]
[360330441,1746744640835,-399.91161886,0.00019973,2]
[360330442,1746744640845,-500.0,0.00019973,2]
[360330443,1746744640855,-500.0,0.00019973,2]
[360330444,1746744640865,-500.0,0.00019973,2]
[360330445,1746744640874,-154.11,0.00019979,2]
[360330446,1746744640884,-154.11,0.0001998,2]
[360330447,1746744640894,-154.11,0.0001998,2]
[360330448,1746744640903,-400.0,0.00019985,2]
[360330449,1746744640913,-400.0,0.00019985,2]
[360330450,1746744640922,-400.0,0.00019985,2]
[360330452,1746744640932,-670.41,0.00019985,2]
[360330454,1746744640942,-1475.19,0.00019985,2]
[360330456,1746744640951,-400.0,0.00019985,2]
[360330458,1746744640963,-400.0,0.00019985,2]
[360330460,1746744640973,-7350.6965164,0.00019986,2]
[360330462,1746744640982,-8550.4998141,0.00019986,2]
[360330464,1746744640992,-151.0,0.00019988,2]
[360330466,1746744641001,-154.11,0.00019989,2]
[360330468,1746744641011,-400.0,0.00019989,2]
[360330470,1746744641020,-868.63,0.00019989,2]
[360330472,1746744641030,-512.67179224,0.00019989,2]
[360330473,1746744641040,-400.0,0.00019989,2]
[360330474,1746744641050,-400.0,0.00019989,2]
[360330475,1746744641059,-1020.91,0.00019989,2]
[360330476,1746744641069,-400.0,0.00019989,2]
[360330477,1746744641082,-400.0,0.00019989,2]
[360330478,1746744641092,-1033.39,0.00019989,2]
[360330479,1746744641102,-400.0,0.00019989,2]
[360330480,1746744641111,-937.49,0.00019989,2]
[360330481,1746744641122,-400.0,0.00019989,2]
[360330482,1746744641131,-510.1085878,0.00019989,2]
[360330483,1746744641141,-502.27778258,0.00019989,2]
[360330484,1746744641151,-400.0,0.00019989,2]
[360330485,1746744641160,-849.1,0.00019989,2]
[360330486,1746744641170,-500.93135188,0.00019989,2]
[360330487,1746744641180,-400.0,0.00019989,2]
[360330488,1746744641190,-400.0,0.00019989,2]
[360330489,1746744641199,-400.0,0.00019989,2]
[360330490,1746744641211,-5423.86,0.00019989,2]
[360330491,1746744641221,-400.0,0.00019989,2]
[360330492,1746744641230,-456.22,0.00019989,2]
[360330493,1746744641240,-1097.43,0.00019989,2]
[360330494,1746744641249,-400.0,0.00019989,2]
[360330495,1746744641259,-400.0,0.00019989,2]
[360330496,1746744641268,-1131.5,0.00019989,2]
[360330497,1746744641278,-400.0,0.00019989,2]
[360330498,1746744641288,-400.0,0.00019989,2]
[360330499,1746744641298,-977.12,0.00019989,2]
[360330500,1746744641308,-451.65593719,0.00019989,2]
[360330501,1746744641318,-400.0,0.00019989,2]
[360330502,1746744641328,-696.02,0.00019989,2]
[360330503,1746744641338,-400.0,0.00019989,2]
[360330504,1746744641347,-785.32,0.00019989,2]
[360330505,1746744641357,-470.92448842,0.00019989,2]
[360330506,1746744641367,-13644.70560707,0.0001999,2]
[360330507,1746744641377,-89017.29127259,0.0001999,2]
[360330508,1746744641387,-259.0,0.00019998,2]
[360330509,1746744641397,-400.0,0.00019998,2]
[360330510,1746744641406,-400.0,0.00019998,2]
[360330511,1746744641416,-150.80032787,0.00019998,2]
[360330512,1746744641425,-400.0,0.00019998,2]
[360330513,1746744641435,-500.61178287,0.00019998,2]
[360330514,1746744641445,-400.0,0.00019998,2]
[360330515,1746744641454,-400.0,0.00019998,2]
[360330516,1746744641464,-400.0,0.00019998,2]
[360330517,1746744641474,-460.23285752,0.00019998,2]
[360330518,1746744641484,-670.41,0.00019998,2]
[360330519,1746744641494,-670.41,0.00019998,2]
[360330520,1746744641503,-670.41,0.00019998,2]
[360330521,1746744641513,-670.41,0.00019998,2]
[360330522,1746744641523,-670.41,0.00019998,2]
[360330523,1746744641533,-670.41,0.00019998,2]
[360330524,1746744641543,-670.41,0.00019998,2]
[360330525,1746744641553,-670.41,0.00019998,2]
[360330526,1746744641562,-670.41,0.00019998,2]
[360330527,1746744641572,-670.41,0.00019998,2]
[360330528,1746744641581,-670.41,0.00019998,2]
[360330529,1746744641591,-1475.19,0.00019998,2]
[360330530,1746744641601,-491.9453375,0.00019998,2]
[360330531,1746744641611,-1475.19,0.00019998,2]
[360330532,1746744641620,-1475.19,0.00019998,2]
[360330533,1746744641630,-1475.19,0.00019998,2]
[360330534,1746744641640,-1475.19,0.00019998,2]
[360330535,1746744641650,-1475.19,0.00019998,2]
[360330536,1746744641659,-1475.19,0.00019998,2]
[360330537,1746744641669,-400.0,0.00019998,2]
[360330538,1746744641679,-1475.19,0.00019998,2]
[360330539,1746744641689,-400.0,0.00019998,2]
[360330540,1746744641699,-1250775.42164602,0.00019999,2]
[360330541,1746744641756,-372.43758669,0.00019879,2]
[360330542,1746744641766,-1928.86241331,0.00019999,2]
[360330543,1746744641777,-1577.7,0.00019999,2]
[360330544,1746744641789,-850.5562,0.00019999,2]
[360330545,1746744641812,-1475.19,0.00019998,2]
[360330546,1746744641822,-400.0,0.00019998,2]
[360330547,1746744641831,-3640.61,0.00019999,2]
[360330569,1746744646044,-372.43758669,0.00019882,2]
[360330571,1746744646055,-374.54368173,0.00019899,2]
[360330573,1746744646065,-400.0,0.00019985,2]
[360330574,1746744646079,-471.12,0.00019985,2]
[360330576,1746744646089,-450.0,0.00019985,2]
[360330578,1746744646099,-450.70064323,0.00019985,2]
[360330579,1746744646109,-660.41,0.00019989,2]
[360330580,1746744646120,-400.0,0.00019998,2]
[360330581,1746744646130,-1475.19,0.00019998,2]
[360330582,1746744646139,-400.0,0.00019998,2]
[360330583,1746744646150,-1475.19,0.00019998,2]
[360330584,1746744646160,-400.0,0.00019998,2]
[360330585,1746744646170,-400.0,0.00019998,2]
[360330586,1746744646179,-400.0,0.00019998,2]
[360330587,1746744646189,-400.0,0.00019998,2]
[360330588,1746744646198,-400.0,0.00019998,2]
[360330589,1746744646208,-400.0,0.00019998,2]
[360330590,1746744646218,-400.0,0.00019998,2]
[360330591,1746744646227,-382.16958853,0.00019998,2]
[360330592,1746744646253,-17.83041147,0.00019998,2]
[360330593,1746744646263,-400.0,0.00019998,2]
[360330594,1746744646272,-400.0,0.00019998,2]
[360330595,1746744646282,-400.0,0.00019998,2]
[360330596,1746744646291,-400.0,0.00019998,2]
[360330597,1746744646301,-224.13032004,0.00019998,2]
[360330598,1746744646311,-471.12,0.00019998,2]
[360330599,1746744646321,-471.12,0.00019998,2]
[360330600,1746744646330,-471.12,0.00019998,2]
[360330601,1746744646340,-471.12,0.00019998,2]
[360330602,1746744646350,-471.12,0.00019998,2]
[360330604,1746744646359,-5178.90676106,0.00019999,2]
[360330606,1746744646372,-30778.53250743,0.00019999,2]
[360330608,1746744646390,-955.0,0.00019999,2]
[360330612,1746744646550,-471.12,0.00019998,2]
[360330613,1746744646560,-2539.10088828,0.00019999,2]
[360330614,1746744646585,-471.12,0.00019998,2]
[360330615,1746744646595,-11821.56316476,0.00019999,2]
[360330616,1746744646607,-1269.7494336,0.00019999,2]
[360330620,1746744701668,726.8,0.00018961,2]
[360330622,1746744790498,2642.3,0.00018946,2]
[360330623,1746744850094,1237.02,0.00017089,2]
[360330624,1746744852190,1237.02,0.00019353,2]
[360330625,1746744893559,1000.0,0.00018951,2]
[360330626,1746744965294,229.30662201,0.00018924,2]
[360330627,1746744965317,339.63337799,0.00018924,2]
[360330628,1746745052022,278.23,0.00018909,2]
[360330629,1746745096532,4163.5,0.00030137,120]
[360330630,1746745113372,450.0,0.00029589,30]
[360330631,1746745171245,250.0,0.00017,2]
[360330632,1746745171995,300.0,0.00019,2]
[360330633,1746745188265,150.0,0.00029,120]
[360330634,1746745228814,150.0,0.0002945,44]
[360330635,1746745229812,631.68,0.00018904,2]
[360330636,1746745288332,150.0,0.0003,30]
[360330637,1746745306983,150.0,0.00018986,7]
[360330638,1746745320359,200.0,0.0003013,120]
[360330639,1746745327864,549.00246,0.00019438,2]
[360330640,1746745367694,7651.45416201,0.00018897,2]
[360330641,1746745367716,10000.0,0.00018897,2]
[360330642,1746745367737,6248.54583799,0.00018897,2]
[360330643,1746745396986,12498.99109577,0.00019236,14]
[360330644,1746745397012,10976.29890423,0.00019236,14]
[360330646,1746745420662,89023.70109577,0.00019236,14]
[360330647,1746745420688,90151.77890423,0.00019236,14]
[360330648,1746745438592,9848.22109577,0.00019236,14]
[360330649,1746745438617,3751.45416201,0.00019236,14]
[360330650,1746745438638,10000.0,0.00019236,14]
[360330651,1746745438658,10000.0,0.00019236,14]
[360330652,1746745438679,10000.0,0.00019236,14]
[360330653,1746745438699,10000.0,0.00019236,14]
[360330654,1746745438721,10000.0,0.00019236,14]
[360330655,1746745438741,6233.93474222,0.00019236,14]
[360330658,1746745461208,1270.75,0.00019237,14]
[360330659,1746745466099,150.0,0.0003013,120]
[360330660,1746745470534,1141.06,0.00018888,2]
[360330661,1746745471255,1141.06,0.00025971,120]
[360330662,1746745471779,1141.06,0.00028332,120]
[360330663,1746745479333,1354.25525778,0.00019237,14]
[360330664,1746745479357,10000.0,0.00019237,14]
[360330665,1746745479378,10000.0,0.00019237,14]
[360330666,1746745479400,4397.98474222,0.00019237,14]
[360330668,1746745490077,5602.01525778,0.00019237,14]
[360330669,1746745490100,6148.49474222,0.00019237,14]
[360330670,1746745503337,250.0,0.0003,30]
[360330671,1746745507980,3851.50525778,0.00019237,14]
[360330672,1746745508004,885.98474222,0.00019237,14]
[360330673,1746745512620,150.0,0.00017975,2]
[360330674,1746745535678,8964.01525778,0.00019237,14]
[360330675,1746745535701,10000.0,0.00019237,14]
[360330676,1746745535723,6762.85474222,0.00019237,14]
[360330677,1746745535913,200.0,0.0002945,44]
[360330678,1746745545464,2000.0,0.00027397,30]
[360330679,1746745545714,2000.0,0.00027397,30]
[360330680,1746745546115,2000.0,0.00027397,30]
[360330681,1746745546369,2000.0,0.00027397,30]
[360330682,1746745546648,2000.0,0.00027397,30]
[360330683,1746745546894,1239.64894557,0.00027397,30]
[360330684,1746745567392,450.0,0.00029589,30]
[360330685,1746745577242,200.0,0.00018894,2]
[360330686,1746745605719,250.0,0.00018894,2]
[360330687,1746745696580,450.0,0.00029589,30]
[360330694,1746745719519,150.0,0.00019501,2]
[360330695,1746745719858,734.33046469,0.00019484,2]
[360330696,1746745722565,200.0,0.0003013,120]
[360330697,1746745730638,665.27,0.00018882,2]
[360330713,1746745831388,-250.0,0.00019619,2]
[360330714,1746745831398,-169.4,0.000197,2]
[360330715,1746745831408,-181.48592764,0.00019714,2]
[360330716,1746745831474,-16.91264874,0.00019714,2]
[360330717,1746745831483,-734.3304647,0.00019738,2]
[360330718,1746745831494,-840.32738656,0.00019738,2]
[360330719,1746745831506,-1188.5050248,0.00019738,2]
[360330720,1746745831516,-200.0,0.00019788,2]
[360330721,1746745831528,-200.0,0.000198,2]
[360330722,1746745831538,-200.0,0.00019801,2]
[360330723,1746745831548,-207.4,0.00019803,2]
[360330724,1746745831557,-397.91763575,0.00019809,2]
[360330725,1746745831574,-1102.08236417,0.00019809,2]
[360330726,1746745831584,-145.3807456,0.00019813,2]
[360330727,1746745831688,-154.6192544,0.00019813,2]
[360330728,1746745831698,-1200.0,0.00019813,2]
[360330729,1746745831709,-300.0,0.00019813,2]
[360330730,1746745831719,-38.21288324,0.00019814,2]
[360330731,1746745831731,-2063.79155191,0.00019814,2]
[360330738,1746745837811,-505.35786019,0.00019738,2]
[360330739,1746745837821,-2796.49794688,0.00019814,2]
[360330740,1746745837831,-580.6957,0.00019819,2]
[360330741,1746745837842,-101.39072239,0.00019827,2]
[360330742,1746745837853,-1903.76612242,0.00019827,2]
[360330743,1746745837863,-3932.20651876,0.00019846,2]
[360330744,1746745837875,-966.29586327,0.00019846,2]
[360330745,1746745837885,-499.99999992,0.00019847,2]
[360330746,1746745837895,-593.88413681,0.00019851,2]
[360330747,1746745837908,-1411.272708,0.00019851,2]
[360330748,1746745837918,-499.99999992,0.00019861,2]
[360330749,1746745837929,-517.34684444,0.00019867,2]
[360330750,1746745837953,-482.65315548,0.00019867,2]
[360330751,1746745837965,-1121.59417581,0.0001987,2]
[360330752,1746745837975,-151.0,0.00019873,2]
[360330753,1746745837986,-151.0,0.00019873,2]
[360330754,1746745837996,-151.0,0.00019873,2]
[360330755,1746745838006,-155.0,0.00019873,2]
[360330756,1746745838018,-668.65185757,0.00019873,2]
[360330757,1746745838029,-999.99999992,0.00019875,2]
[360330758,1746745838040,-200.0,0.00019882,2]
[360330759,1746745838051,-1499.99999992,0.00019882,2]
[360330760,1746745838061,-198.39857637,0.00019884,2]
[360330761,1746745838072,-223.46255205,0.00019884,2]
[360330762,1746745838083,-850.0,0.00019884,2]
[360330763,1746745838093,-173.3936,0.00019885,2]
[360330764,1746745838102,-2500.0,0.00019885,2]
[360330765,1746745838113,-794.58016305,0.00019885,2]
[360330766,1746745838124,-223.46255201,0.00019885,2]
[360330767,1746745838134,-794.58016299,0.00019886,2]
[360330768,1746745838145,-223.46255201,0.00019887,2]
[360330769,1746745838155,-794.58016299,0.00019888,2]
[360330770,1746745838167,-223.46255201,0.00019888,2]
[360330771,1746745838177,-499.99999992,0.00019889,2]
[360330772,1746745838187,-794.58016299,0.00019889,2]
[360330773,1746745838196,-223.46255201,0.0001989,2]
[360330774,1746745838206,-794.58016299,0.0001989,2]
[360330775,1746745838216,-220.54918811,0.00019891,2]
[360330776,1746745838228,-2.9133639,0.00019891,2]
[360330777,1746745838237,-794.58016299,0.00019892,2]